fUST/lending_fUST_20250109
["ID","MTS","AMOUNT","RATE_DAILY","PERIOD"]
[348156062,1736358647128,-151.0,0.000224,10]
[348156064,1736358647140,-151.0,0.000224,5]
[348156066,1736358647150,-721.77,0.00022465,3]
[348156068,1736358647159,-507.95,0.00022465,3]
[348156070,1736358647168,-1075.22,0.00022465,3]
[348156072,1736358647178,-602.17,0.00022465,3]
[348156074,1736358647187,-1043.47,0.00022465,3]
[348156076,1736358647196,-500.0,0.00022465,3]
[348156078,1736358647205,-5454.65,0.00022465,3]
[348156080,1736358647215,-500.0,0.00022465,3]
[348156082,1736358647225,-208.83320112,0.00022567,2]
[348156084,1736358647234,-705.13,0.000227,2]
[348156086,1736358647243,-721.77,0.00022739,3]
[348156088,1736358647252,-1075.22,0.00022739,3]
[348156090,1736358647262,-602.17,0.00022739,3]
[348156091,1736358647271,-1043.47,0.00022739,3]
[348156094,1736358647280,-167.03064249,0.00022739,3]
[348156095,1736358647290,-5454.65,0.00022739,3]
[348156097,1736358647300,-500.0,0.00022739,3]
[348156099,1736358647309,-162.431711,0.00022759,2]
[348156101,1736358647318,-587.0,0.00022775,2]
[348156103,1736358647327,-1200.0,0.00022782,2]
[348156105,1736358647336,-208.83320112,0.00022789,2]
[348156107,1736358647345,-151.0,0.000228,7]
[348156109,1736358647354,-151.0,0.000228,7]
[348156111,1736358647363,-594.75060565,0.00022948,27]
[348156113,1736358647372,-208.83320112,0.00023011,2]
[348156115,1736358647384,-721.77,0.00023013,3]
[348156117,1736358647393,-1075.22,0.00023013,3]
[348156119,1736358647402,-602.17,0.00023013,3]
[348156121,1736358647411,-1043.47,0.00023013,3]
[348156123,1736358647421,-5454.65,0.00023013,3]
[348156125,1736358647430,-500.0,0.00023013,3]
[348156127,1736358647440,-822.58716294,0.00023088,2]
[348156129,1736358647449,-152.53,0.000231,31]
[348156131,1736358647459,-152.53,0.000231,31]
[348156133,1736358647468,-152.53,0.000231,31]
[348156135,1736358647478,-152.53,0.000231,31]
[348156137,1736358647487,-152.53,0.000231,31]
[348156139,1736358647498,-152.53,0.000231,31]
[348156141,1736358647507,-152.53,0.000231,31]
[348156143,1736358647516,-500.0,0.00023173,2]
[348156145,1736358647526,-500.0,0.00023173,2]
[348156147,1736358647535,-6145.22046816,0.00023188,5]
[348156149,1736358647545,-2026.54917569,0.00023188,5]
[348156151,1736358647554,-151.0,0.00023188,7]
[348156153,1736358647564,-151.0,0.00023188,7]
[348156154,1736358647573,-151.0,0.00023188,7]
[348156155,1736358647585,-151.0,0.00023188,7]
[348156156,1736358647594,-151.0,0.00023188,7]
[348156157,1736358647603,-151.0,0.00023188,7]
[348156158,1736358647611,-151.0,0.00023188,7]
[348156159,1736358647620,-151.0,0.00023188,7]
[348156160,1736358647629,-151.0,0.00023188,7]
[348156162,1736358647640,-151.0,0.00023188,7]
[348156165,1736358647651,-151.0,0.00023188,7]
[348156166,1736358647659,-232766.90634029,0.00023188,10]
[348156169,1736358647671,-18652.98304457,0.00023188,10]
[348156175,1736358647725,-21.43181468,0.00023188,10]
[348156178,1736358647736,-747.88,0.00023188,10]
[348159112,1736358983576,-164.73948169,0.00019078,2]
[348159113,1736358983608,-300.0,0.00019177,2]
[348159114,1736358983638,-500.0,0.00019178,2]
[348159115,1736358983671,-500.0,0.00019178,2]
[348159116,1736358983706,-124.52103662,0.00019178,2]
[348159117,1736358983790,-375.47896338,0.00019178,2]
[348159652,1736359331619,159.628808,0.00013973,2]
[348159653,1736359533268,-2063.60010512,0.00018315,2]
[348159654,1736359628153,-862.34809988,0.00018315,2]
[348159655,1736359628175,-180.007,0.00019177,2]
[348159656,1736359628197,-300.0,0.00019177,2]
[348159657,1736359628219,-157.91501789,0.00019177,2]
[348159658,1736359628240,-156.21143962,0.00019177,2]
[348159659,1736359628262,-199.91498211,0.00019177,2]
[348159660,1736359628294,-503.3161859,0.00019178,2]
[348159661,1736359628511,-500.24047302,0.00019178,2]
[348159662,1736359628535,-320.79362068,0.00019178,2]
[348159663,1736359628557,-500.81546027,0.00019178,2]
[348159664,1736359628579,-500.61682899,0.00019178,2]
[348159665,1736359628601,-500.0,0.00019178,2]
[348159666,1736359628625,-500.0,0.00019178,5]
[348159667,1736359628646,-634.79158869,0.00019178,2]
[348159668,1736359628670,-500.0,0.00019178,2]
[348159669,1736359628691,-520.23661617,0.00019178,2]
[348159670,1736359628713,-500.0,0.00019178,2]
[348159671,1736359628736,-500.0,0.00019178,2]
[348159672,1736359628758,-500.0,0.00019178,2]
[348159673,1736359628779,-500.0,0.00019178,2]
[348159674,1736359628801,-500.0,0.00019178,2]
[348159675,1736359628821,-500.0,0.00019178,2]
[348159676,1736359628842,-500.0,0.00019178,2]
[348159677,1736359628863,-285.52401101,0.00019178,2]
[348159678,1736359628882,-500.0,0.00019178,2]
[348159679,1736359628906,-500.0,0.00019178,2]
[348159680,1736359628931,-500.0,0.00019178,2]
[348159681,1736359628956,-500.0,0.00019178,2]
[348159682,1736359628978,-575.76280407,0.00019178,2]
[348159683,1736359629001,-500.0,0.00019178,2]
[348159684,1736359629022,-500.0,0.00019178,2]
[348159685,1736359629047,-500.0,0.00019178,2]
[348159686,1736359629069,-500.0,0.00019178,2]
[348159687,1736359629095,-500.0,0.00019178,2]
[348159688,1736359629117,-500.0,0.00019178,2]
[348159689,1736359629140,-500.0,0.00019178,2]
[348159690,1736359629169,-500.0,0.00019178,2]
[348159691,1736359629192,-500.0,0.00019178,2]
[348159692,1736359629214,-500.0,0.00019178,2]
[348159693,1736359629235,-500.0,0.00019178,2]
[348159694,1736359629259,-500.0,0.00019178,2]
[348159695,1736359629280,-500.0,0.00019178,2]
[348159696,1736359629303,-500.0,0.00019178,2]
[348159697,1736359629325,-500.0,0.00019178,2]
[348159698,1736359629347,-500.0,0.00019178,2]
[348159699,1736359629368,-500.0,0.00019178,2]
[348159700,1736359629392,-500.0,0.00019178,2]
[348159701,1736359629418,-500.0,0.00019178,2]
[348159702,1736359629439,-500.0,0.00019178,2]
[348159703,1736359629461,-79.26974254,0.00019178,2]
[348159755,1736359832845,-1429.57514984,0.000189,2]
[348159765,1736359832939,-28.42810976,0.000189,2]
[348159767,1736359832950,-248.87901181,0.00019173,2]
[348159769,1736359832959,-300.0,0.00019177,2]
[348159772,1736359832969,-500.0,0.00019178,2]
[348159774,1736359832979,-500.0,0.00019178,2]
[348159776,1736359832988,-500.0,0.00019178,2]
[348159777,1736359832998,-500.0,0.00019178,2]
[348159779,1736359833007,-500.0,0.00019178,2]
[348159781,1736359833016,-386.40695908,0.00019178,2]
[348159783,1736359833025,-500.0,0.00019178,2]
[348159785,1736359833035,-500.0,0.00019178,2]
[348159787,1736359833044,-500.0,0.00019178,2]
[348159789,1736359833054,-320.30710115,0.00019178,2]
[348159791,1736359833064,-500.0,0.00019178,2]
[348159793,1736359833074,-500.0,0.00019178,2]
[348159795,1736359833088,-500.0,0.00019178,2]
[348159797,1736359833098,-500.0,0.00019178,2]
[348159800,1736359833109,-500.0,0.00019178,2]
[348159802,1736359833119,-500.0,0.00019178,2]
[348159803,1736359833129,-500.0,0.00019178,2]
[348159805,1736359833139,-500.0,0.00019178,2]
[348159807,1736359833148,-500.0,0.00019178,2]
[348159809,1736359833158,-500.0,0.00019178,2]
[348159811,1736359833169,-500.0,0.00019178,2]
[348159813,1736359833180,-500.0,0.00019178,2]
[348159815,1736359833190,-500.0,0.00019178,2]
[348159817,1736359833200,-500.0,0.00019178,2]
[348159819,1736359833210,-500.0,0.00019178,2]
[348159821,1736359833219,-500.0,0.00019178,2]
[348159823,1736359833229,-500.0,0.00019178,2]
[348159825,1736359833239,-500.0,0.00019178,2]
[348159827,1736359833248,-500.0,0.00019178,2]
[348159829,1736359833261,-500.0,0.00019178,2]
[348159831,1736359833272,-500.0,0.00019178,2]
[348159833,1736359833282,-500.0,0.00019178,2]
[348159835,1736359833292,-500.0,0.00019178,2]
[348159837,1736359833302,-500.0,0.00019178,2]
[348159839,1736359833312,-500.0,0.00019178,2]
[348159841,1736359833322,-432.93638237,0.00019178,2]
[348159843,1736359833333,-500.0,0.00019178,2]
[348159845,1736359833343,-500.0,0.00019178,2]
[348159847,1736359833353,-500.0,0.00019178,2]
[348159849,1736359833363,-500.0,0.00019178,2]
[348159851,1736359833372,-500.0,0.00019178,2]
[348159853,1736359833383,-500.0,0.00019178,2]
[348159855,1736359833393,-510.44062713,0.00019178,2]
[348159857,1736359833403,-511.32654312,0.00019178,2]
[348159859,1736359833413,-500.0,0.00019178,2]
[348159861,1736359833423,-501.87398666,0.00019178,2]
[348159863,1736359833433,-500.0,0.00019178,2]
[348159865,1736359833441,-500.0,0.00019178,2]
[348159867,1736359833451,-507.50696637,0.00019178,2]
[348159869,1736359833462,-501.3164155,0.00019178,2]
[348159871,1736359833473,-500.0,0.00019178,2]
[348159873,1736359833483,-507.07408275,0.00019178,2]
[348159875,1736359833493,-507.32113985,0.00019178,2]
[348159877,1736359833503,-248.65437705,0.00019178,2]
[348159879,1736359833513,-500.0,0.00019178,2]
[348159881,1736359833523,-507.87020141,0.00019178,2]
[348159883,1736359833532,-500.0,0.00019178,2]
[348159885,1736359833543,-39.99268035,0.00019178,2]
[348159887,1736359833557,-435.54420225,0.00019178,2]
[348159889,1736359833566,-500.0,0.00019178,2]
[348159891,1736359833576,-500.0,0.00019178,2]
[348159893,1736359833588,-500.0,0.00019178,2]
[348159895,1736359833597,-210.8564101,0.00019178,2]
[348159898,1736359833610,-289.1435899,0.00019178,2]
[348159900,1736359833620,-500.0,0.00019178,2]
[348159902,1736359833630,-200.0,0.00019178,2]
[348159904,1736359833640,-500.0,0.00019178,2]
[348159906,1736359833650,-500.0,0.00019178,2]
[348159908,1736359833660,-500.0,0.00019178,2]
[348159910,1736359833671,-508.09078775,0.00019178,2]
[348159912,1736359833681,-500.0,0.00019178,2]
[348159914,1736359833691,-500.0,0.00019178,2]
[348159915,1736359833700,-500.0,0.00019178,2]
[348159917,1736359833710,-500.0,0.00019178,2]
[348159919,1736359833721,-397.77255188,0.00019178,2]
[348159921,1736359833730,-495.63869786,0.00019178,2]
[348159923,1736359833741,-500.0,0.00019178,2]
[348159926,1736359833750,-500.0,0.00019178,2]
[348159927,1736359833760,-307.47982435,0.00019178,2]
[348159929,1736359833769,-500.0,0.00019178,2]
[348159931,1736359833779,-500.0,0.00019178,2]
[348159934,1736359833790,-500.0,0.00019178,2]
[348159936,1736359833800,-500.0,0.00019178,2]
[348159937,1736359833810,-500.0,0.00019178,2]
[348159940,1736359833820,-500.0,0.00019178,2]
[348159941,1736359833831,-500.0,0.00019178,2]
[348159944,1736359833841,-500.0,0.00019178,2]
[348159946,1736359833851,-500.0,0.00019178,2]
[348159948,1736359833860,-560.07807414,0.00019178,2]
[348159950,1736359833871,-500.0,0.00019178,2]
[348159952,1736359833883,-500.0,0.00019178,2]
[348159954,1736359833893,-500.0,0.00019178,2]
[348159956,1736359833903,-500.0,0.00019178,2]
[348159958,1736359833914,-500.0,0.00019178,2]
[348159960,1736359833923,-500.0,0.00019178,2]
[348159962,1736359833933,-500.0,0.00019178,2]
[348159964,1736359833942,-500.0,0.00019178,2]
[348159965,1736359833952,-500.0,0.00019178,2]
[348159967,1736359833963,-605.41,0.00019178,2]
[348159969,1736359833973,-500.0,0.00019178,2]
[348159971,1736359833983,-502.20169244,0.00019178,2]
[348159973,1736359833993,-500.0,0.00019178,2]
[348159975,1736359834003,-500.0,0.00019178,2]
[348159977,1736359834013,-43.09299952,0.00019178,2]
[348160417,1736359838636,-456.90700048,0.00019178,2]
[348160419,1736359838645,-150.35659007,0.00019178,2]
[348160435,1736359838785,-229.28890057,0.00019178,2]
[348160443,1736359838857,-120.35450936,0.00019178,2]
[348160445,1736359838867,-500.0,0.00019178,2]
[348160447,1736359838877,-500.0,0.00019178,2]
[348160449,1736359838886,-500.0,0.00019178,2]
[348160451,1736359838896,-570.59,0.00019178,2]
[348160453,1736359838906,-500.0,0.00019178,2]
[348160455,1736359838916,-500.0,0.00019178,2]
[348160457,1736359838925,-500.0,0.00019178,2]
[348160459,1736359838935,-501.20264461,0.00019178,2]
[348160461,1736359838944,-500.0,0.00019178,2]
[348160463,1736359838954,-500.0,0.00019178,2]
[348160465,1736359838963,-500.0,0.00019178,2]
[348160467,1736359838972,-500.0,0.00019178,2]
[348160470,1736359838982,-500.0,0.00019178,2]
[348160473,1736359838991,-500.0,0.00019178,2]
[348160476,1736359839001,-500.0,0.00019178,2]
[348160478,1736359839010,-500.0,0.00019178,2]
[348160490,1736359839121,-500.0,0.00019178,2]
[348160492,1736359839130,-500.0,0.00019178,2]
[348160495,1736359839152,-500.0,0.00019178,2]
[348160497,1736359839163,-500.0,0.00019178,2]
[348160499,1736359839177,-500.0,0.00019178,2]
[348160501,1736359839187,-500.0,0.00019178,2]
[348160502,1736359839197,-500.0,0.00019178,2]
[348160504,1736359839207,-500.0,0.00019178,2]
[348160505,1736359839218,-500.0,0.00019178,2]
[348160507,1736359839228,-500.0,0.00019178,2]
[348160509,1736359839239,-500.0,0.00019178,2]
[348160511,1736359839249,-500.0,0.00019178,2]
[348160513,1736359839260,-518.11,0.00019178,2]
[348160515,1736359839270,-500.0,0.00019178,2]
[348160517,1736359839280,-503.78005844,0.00019178,2]
[348160519,1736359839290,-500.0,0.00019178,2]
[348160521,1736359839300,-500.0,0.00019178,2]
[348160523,1736359839310,-500.0,0.00019178,2]
[348160525,1736359839319,-500.0,0.00019178,2]
[348160527,1736359839330,-500.0,0.00019178,2]
[348160529,1736359839344,-500.0,0.00019178,2]
[348160531,1736359839355,-500.0,0.00019178,2]
[348160533,1736359839364,-500.0,0.00019178,2]
[348160535,1736359839373,-500.0,0.00019178,2]
[348160537,1736359839383,-500.0,0.00019178,2]
[348160539,1736359839392,-500.0,0.00019178,2]
[348160542,1736359839403,-500.0,0.00019178,2]
[348160544,1736359839412,-500.0,0.00019178,2]
[348160546,1736359839422,-420.73025746,0.00019178,2]
[348160548,1736359839431,-500.0,0.00019178,2]
[348160550,1736359839441,-500.0,0.00019178,2]
[348160552,1736359839451,-500.0,0.00019178,2]
[348160554,1736359839460,-500.0,0.00019178,2]
[348160555,1736359839471,-3687.33253013,0.00019178,2]
[348160679,1736359840639,-409.14746987,0.00019178,2]
[348160681,1736359840650,-500.0,0.00019178,2]
[348160683,1736359840659,-500.0,0.00019178,2]
[348160685,1736359840669,-500.0,0.00019178,2]
[348160687,1736359840679,-500.0,0.00019178,2]
[348160689,1736359840689,-500.0,0.00019178,2]
[348160691,1736359840698,-500.0,0.00019178,2]
[348160693,1736359840708,-500.0,0.00019178,2]
[348160695,1736359840717,-500.0,0.00019178,2]
[348160697,1736359840727,-90.85253013,0.00019178,2]
[348160701,1736359840759,-409.14746987,0.00019178,2]
[348160703,1736359840768,-90.85253013,0.00019178,2]
[348160705,1736359840781,-409.14746987,0.00019178,2]
[348160707,1736359840791,-366.65253013,0.00019178,2]
[348160717,1736359840870,-133.34746987,0.00019178,2]
[348160719,1736359840881,-500.0,0.00019178,2]
[348160721,1736359840890,-500.0,0.00019178,2]
[348160724,1736359840900,-500.0,0.00019178,2]
[348160726,1736359840909,-508.92,0.00019178,2]
[348160728,1736359840919,-500.0,0.00019178,2]
[348160729,1736359840928,-500.0,0.00019178,2]
[348160732,1736359840937,-500.0,0.00019178,2]
[348160733,1736359840947,-500.0,0.00019178,2]
[348160735,1736359840956,-500.0,0.00019178,2]
[348160738,1736359840966,-500.0,0.00019178,2]
[348160740,1736359840975,-500.0,0.00019178,2]
[348160741,1736359840985,-500.0,0.00019178,2]
[348160744,1736359840995,-500.0,0.00019178,2]
[348160746,1736359841004,-500.0,0.00019178,2]
[348160748,1736359841013,-1000.0,0.00019178,7]
[348160750,1736359841023,-500.0,0.00019178,2]
[348160752,1736359841032,-500.0,0.00019178,2]
[348160754,1736359841042,-500.0,0.00019178,2]
[348160756,1736359841051,-500.0,0.00019178,2]
[348160758,1736359841061,-500.0,0.00019178,2]
[348160760,1736359841071,-500.0,0.00019178,2]
[348160762,1736359841080,-500.0,0.00019178,2]
[348160764,1736359841093,-500.0,0.00019178,2]
[348160766,1736359841103,-500.0,0.00019178,2]
[348160768,1736359841112,-500.38856196,0.00019178,2]
[348160770,1736359841122,-500.0,0.00019178,2]
[348160772,1736359841132,-500.0,0.00019178,2]
[348160774,1736359841142,-500.0,0.00019178,2]
[348160776,1736359841151,-500.0,0.00019178,2]
[348160778,1736359841162,-500.0,0.00019178,2]
[348160780,1736359841176,-500.0,0.00019178,2]
[348160782,1736359841186,-165.822356,0.00019178,2]
[348160784,1736359841195,-500.0,0.00019451,3]
[348160786,1736359841205,-500.0,0.00019452,3]
[348160788,1736359841215,-500.0,0.00019452,3]
[348160790,1736359841224,-500.0,0.00019452,3]
[348160792,1736359841233,-500.0,0.00019452,3]
[348160794,1736359841244,-167.58,0.00019452,3]
[348160796,1736359841254,-171.60234345,0.00019452,3]
[348160798,1736359841263,-500.0,0.00019452,3]
[348160800,1736359841273,-492.95762413,0.00019452,3]
[348160802,1736359841283,-520.29482421,0.00019452,3]
[348160804,1736359841292,-508.5261156,0.00019452,3]
[348160806,1736359841302,-491.57189542,0.00019452,3]
[348160808,1736359841311,-500.0,0.00019452,3]
[348160810,1736359841321,-498.54974034,0.00019452,3]
[348160812,1736359841331,-500.0,0.00019452,3]
[348160814,1736359841345,-500.0,0.00019452,3]
[348160816,1736359841354,-500.0,0.00019452,3]
[348160818,1736359841363,-500.0,0.00019452,3]
[348160820,1736359841373,-500.0,0.00019452,3]
[348160822,1736359841382,-500.0,0.00019452,3]
[348160824,1736359841391,-500.0,0.00019452,3]
[348160826,1736359841401,-605.41,0.00019452,3]
[348160828,1736359841410,-410.26937372,0.00019452,3]
[348160830,1736359841419,-570.59,0.00019452,3]
[348160832,1736359841430,-500.0,0.00019452,3]
[348160834,1736359841439,-522.5010157,0.00019452,3]
[348160836,1736359841449,-500.0,0.00019452,3]
[348160838,1736359841459,-500.0,0.00019452,3]
[348160840,1736359841470,-335.0835746,0.00019452,3]
[348161130,1736359844259,-164.9164254,0.00019452,3]
[348161132,1736359844270,-275.76220499,0.00019452,3]
[348161134,1736359844280,-518.11,0.00019452,3]
[348161136,1736359844289,-500.0,0.00019452,3]
[348161137,1736359844298,-98.5010879,0.00019452,3]
[348161138,1736359844310,-401.4989121,0.00019452,3]
[348161139,1736359844319,-41.21136961,0.00019452,3]
[348161140,1736359844383,-458.78863039,0.00019452,3]
[348161142,1736359844392,-500.0,0.00019452,3]
[348161143,1736359844402,-500.0,0.00019452,3]
[348161144,1736359844411,-415.65778891,0.00019452,3]
[348161145,1736359844422,-84.34221109,0.00019452,3]
[348161146,1736359844432,-515.93,0.00019452,3]
[348161147,1736359844441,-500.0,0.00019452,3]
[348161148,1736359844450,-3594.48778891,0.00019452,3]
[348161164,1736359846688,-249.75125,0.00019452,3]
[348161165,1736359846701,-252.24096109,0.00019452,3]
[348161166,1736359846711,-25.04219607,0.00019452,3]
[348161167,1736359846809,-474.95780393,0.00019452,3]
[348161168,1736359846819,-500.0,0.00019452,3]
[348161169,1736359846830,-500.0,0.00019452,3]
[348161170,1736359846840,-500.0,0.00019452,3]
[348161171,1736359846850,-500.0,0.00019452,3]
[348161172,1736359846860,-500.0,0.00019452,3]
[348161173,1736359846870,-288.84219616,0.00019452,3]
[348161174,1736359846883,-211.15780384,0.00019452,3]
[348161175,1736359846893,-500.0,0.00019452,3]
[348161176,1736359846902,-500.0,0.00019452,3]
[348161177,1736359846912,-385.29819616,0.00019452,3]
[348162694,1736359927828,2957.6051192,0.00014999,2]
[348162695,1736359928100,2397.7660728,0.00014992,2]
[348162696,1736359928123,559.8390464,0.00014992,2]
[348162697,1736359928413,1064.1609536,0.00015,2]
[348162698,1736359928448,1893.4441656,0.00015,2]
[348162700,1736360270445,159.610055,0.00013973,2]
[348162715,1736360837596,-281.5548971,0.00018153,2]
[348162716,1736360837619,-1515.97111091,0.000189,2]
[348162717,1736360837641,-300.0,0.00019002,2]
[348162718,1736360837664,-640.0,0.00019002,2]
[348162719,1736360837689,-1233.02391941,0.00019003,2]
[348162721,1736360962138,-5845.19348776,0.00018,7]
[348162722,1736360962157,-282.37411224,0.00018153,2]
[348162897,1736361036668,-146.96019408,0.00018153,2]
[348162898,1736361036678,-929.37002066,0.000189,2]
[348162899,1736361036690,-81.27738661,0.000189,2]
[348162900,1736361036700,-510.5951578,0.00019009,2]
[348162901,1736361036709,-164.73948169,0.00019078,2]
[348162902,1736361036719,-180.008,0.00019177,2]
[348162903,1736361036729,-300.0,0.00019177,2]
[348162904,1736361036738,-500.0,0.00019178,2]
[348162905,1736361036747,-264.33886058,0.00019178,2]
[348162906,1736361036757,-500.0,0.00019178,2]
[348162907,1736361036766,-500.0,0.00019178,2]
[348162908,1736361036776,-239.13615113,0.00019178,2]
[348162909,1736361036786,-500.0,0.00019178,2]
[348162910,1736361036795,-500.0,0.00019178,2]
[348162911,1736361036805,-2083.5,0.00019178,2]
[348162912,1736361036814,-500.0,0.00019178,2]
[348162913,1736361036824,-337.18,0.00019178,2]
[348162914,1736361036834,-649.91,0.00019178,2]
[348162915,1736361036844,-500.0,0.00019178,2]
[348162916,1736361036857,-610.1,0.00019178,2]
[348162917,1736361036870,-271.17,0.00019178,2]
[348162918,1736361036880,-228.82,0.00019178,2]
[348162919,1736361036889,-500.0,0.00019178,2]
[348162920,1736361036898,-500.51318344,0.00019178,2]
[348162921,1736361036908,-500.0,0.00019178,2]
[348162922,1736361036918,-500.0,0.00019178,2]
[348162923,1736361036928,-500.0,0.00019178,2]
[348162924,1736361036938,-500.0,0.00019178,2]
[348162925,1736361036948,-500.47916774,0.00019178,2]
[348162926,1736361036958,-500.0,0.00019178,2]
[348162927,1736361036968,-500.0,0.00019178,2]
[348162928,1736361036978,-500.0,0.00019178,2]
[348162929,1736361036988,-500.0,0.00019178,2]
[348162930,1736361036998,-500.0,0.00019178,5]
[348162931,1736361037008,-476.04073688,0.00019178,2]
[348162932,1736361037021,-23.95926312,0.00019178,2]
[348162933,1736361037031,-500.0,0.00019178,2]
[348162934,1736361037041,-500.0,0.00019178,2]
[348162935,1736361037050,-500.0,0.00019178,2]
[348162936,1736361037059,-500.0,0.00019178,2]
[348162937,1736361037069,-314.18,0.00019178,2]
[348162938,1736361037079,-500.0,0.00019178,2]
[348162939,1736361037089,-500.50269835,0.00019178,2]
[348162940,1736361037103,-500.0,0.00019178,2]
[348162941,1736361037113,-500.0,0.00019178,2]
[348162942,1736361037122,-500.0,0.00019178,2]
[348162943,1736361037131,-500.0,0.00019178,2]
[348162944,1736361037141,-500.63032812,0.00019178,2]
[348162945,1736361037151,-500.0,0.00019178,2]
[348162946,1736361037160,-643.91226017,0.00019178,2]
[348162947,1736361037170,-500.0,0.00019178,2]
[348162948,1736361037179,-500.0,0.00019178,2]
[348162949,1736361037189,-500.0,0.00019178,2]
[348162950,1736361037199,-410.96041141,0.00019178,2]
[348162951,1736361037209,-547.75902297,0.00019178,2]
[348162952,1736361037331,-500.0,0.00019178,2]
[348162953,1736361037349,-500.0,0.00019178,2]
[348162954,1736361037359,-500.0,0.00019178,2]
[348162955,1736361037368,-500.0,0.00019178,2]
[348162956,1736361037378,-501.70098251,0.00019178,2]
[348162957,1736361037387,-322.95414208,0.00019178,2]
[348162958,1736361037396,-500.0,0.00019178,2]
[348162959,1736361037406,-500.0,0.00019178,2]
[348162960,1736361037415,-500.0,0.00019178,2]
[348162961,1736361037424,-500.0,0.00019178,2]
[348162962,1736361037434,-500.0,0.00019178,2]
[348162963,1736361037443,-500.0,0.00019178,2]
[348162964,1736361037452,-500.0,0.00019178,2]
[348162965,1736361037462,-311.93531904,0.00019178,2]
[348162966,1736361037474,-188.06468096,0.00019178,2]
[348162967,1736361037483,-500.0,0.00019178,2]
[348162968,1736361037493,-500.0,0.00019178,2]
[348162969,1736361037503,-500.0,0.00019178,2]
[348162970,1736361037513,-500.0,0.00019178,2]
[348162971,1736361037522,-500.0,0.00019178,2]
[348162972,1736361037532,-505.3149039,0.00019178,2]
[348162973,1736361037541,-500.0,0.00019178,2]
[348162974,1736361037550,-500.0,0.00019178,2]
[348162975,1736361037560,-500.0,0.00019178,2]
[348162976,1736361037575,-154.2284943,0.00019178,2]
[348162977,1736361037584,-500.0,0.00019178,2]
[348162978,1736361037594,-554.96,0.00019178,2]
[348162979,1736361037607,-500.0,0.00019178,2]
[348162980,1736361037616,-500.0,0.00019178,2]
[348162981,1736361037625,-584.05,0.00019178,2]
[348162982,1736361037635,-500.0,0.00019178,2]
[348162983,1736361037645,-622.11,0.00019178,2]
[348162984,1736361037654,-500.0,0.00019178,2]
[348162985,1736361037663,-500.0,0.00019178,2]
[348162986,1736361037672,-562.24,0.00019178,2]
[348162987,1736361037682,-500.0,0.00019178,2]
[348162988,1736361037691,-338.44815545,0.00019178,2]
[348162989,1736361037701,-500.0,0.00019178,2]
[348162990,1736361037710,-3755.11,0.00019178,2]
[348162991,1736361037719,-500.0,0.00019178,2]
[348162992,1736361037729,-202.47400301,0.00019178,2]
[348162993,1736361037738,-500.0,0.00019178,2]
[348162994,1736361037747,-500.0,0.00019178,2]
[348162995,1736361037757,-500.0,0.00019178,2]
[348162996,1736361037766,-500.0,0.00019178,2]
[348162997,1736361037775,-500.0,0.00019178,2]
[348162998,1736361037785,-500.0,0.00019178,2]